[Event "*** Titled Tuesday Blitz"]
[Site "Chess.com"]
[Date "2021.04.06"]
[Round "9"]
[White "Fy_Rakotomaharo"]
[Black "Zq1"]
[Result "1-0"]
[WhiteElo "2694"]
[BlackElo "2547"]
[TimeControl "180+1"]
[EndTime "11:43:59 PDT"]
[Termination "Fy_Rakotomaharo won on time"]

1. e4 {[%clk 0:03:00.9]} 1... c5 {[%clk 0:02:59.5]} 2. Nf3 {[%clk 0:02:58.7]}
2... d6 {[%clk 0:02:59.7]} 3. d4 {[%clk 0:02:58.6]} 3... cxd4 {[%clk 0:02:59.7]}
4. Nxd4 {[%clk 0:02:59.5]} 4... Nf6 {[%clk 0:02:59.6]} 5. Nc3 {[%clk 0:02:59.9]}
5... Nc6 {[%clk 0:02:59.8]} 6. Bg5 {[%clk 0:02:59.4]} 6... g6 {[%clk 0:03:00]}
7. Bxf6 {[%clk 0:02:28.6]} 7... exf6 {[%clk 0:02:59.4]} 8. Bb5 {[%clk
0:02:27.8]} 8... Bd7 {[%clk 0:02:58.7]} 9. Qd2 {[%clk 0:02:27.5]} 9... Bg7
{[%clk 0:02:57.7]} 10. Nb3 {[%clk 0:02:13.1]} 10... a6 {[%clk 0:02:55.8]} 11.
Bc4 {[%clk 0:02:11.9]} 11... Ne5 {[%clk 0:02:33.1]} 12. Bd5 {[%clk 0:02:09]}
12... Qc7 {[%clk 0:02:21]} 13. O-O {[%clk 0:02:06]} 13... O-O {[%clk 0:02:19.4]}
14. f4 {[%clk 0:02:03.4]} 14... Nc4 {[%clk 0:02:05.3]} 15. Bxc4 {[%clk
0:01:58.5]} 15... Qxc4 {[%clk 0:02:05.2]} 16. Qxd6 {[%clk 0:01:35]} 16... Bc6
{[%clk 0:02:04.3]} 17. Qd3 {[%clk 0:01:28.3]} 17... Qb4 {[%clk 0:01:53.7]} 18.
Nd5 {[%clk 0:01:25.5]} 18... Bxd5 {[%clk 0:00:17.9]} 19. exd5 {[%clk 0:01:26.4]}
1-0

[Event "*** Titled Tuesday Blitz"]
[Site "Chess.com"]
[Date "2021.04.06"]
[Round "9"]
[White "erdni1993"]
[Black "PolandHussars"]
[Result "0-1"]
[WhiteElo "2499"]
[BlackElo "2623"]
[TimeControl "180+1"]
[EndTime "11:43:59 PDT"]
[Termination "PolandHussars won by resignation"]

1. e4 {[%clk 0:03:00.9]} 1... e5 {[%clk 0:02:59.7]} 2. Nf3 {[%clk 0:03:01.1]}
2... Nc6 {[%clk 0:03:00.1]} 3. Bb5 {[%clk 0:03:01.6]} 3... g6 {[%clk 0:03:00.3]}
4. O-O {[%clk 0:03:00]} 4... Bg7 {[%clk 0:03:00.2]} 5. c3 {[%clk 0:03:00.1]}
5... d6 {[%clk 0:03:00.6]} 6. Re1 {[%clk 0:03:00]} 6... Bd7 {[%clk 0:03:00.8]}
7. h3 {[%clk 0:02:59.7]} 7... Nge7 {[%clk 0:03:00.6]} 8. d4 {[%clk 0:02:58.1]}
8... O-O {[%clk 0:03:00.7]} 9. dxe5 {[%clk 0:02:55]} 9... Nxe5 {[%clk
0:03:00.6]} 10. Bf1 {[%clk 0:02:50]} 10... Nxf3+ {[%clk 0:02:58.3]} 11. Qxf3
{[%clk 0:02:49.7]} 11... Nc6 {[%clk 0:02:58.7]} 12. Nd2 {[%clk 0:02:46.6]} 12...
Qf6 {[%clk 0:02:58.4]} 13. Qxf6 {[%clk 0:02:44.7]} 13... Bxf6 {[%clk 0:02:58.5]}
14. Nc4 {[%clk 0:02:45.1]} 14... Rae8 {[%clk 0:02:56.4]} 15. Bh6 {[%clk
0:02:44.7]} 15... Bg7 {[%clk 0:02:56.9]} 16. Bxg7 {[%clk 0:02:43.6]} 16... Kxg7
{[%clk 0:02:57.8]} 17. f3 {[%clk 0:02:41]} 17... f5 {[%clk 0:02:56.7]} 18. exf5
{[%clk 0:02:38.1]} 18... Bxf5 {[%clk 0:02:56]} 19. Ne3 {[%clk 0:02:35.5]} 19...
Be6 {[%clk 0:02:54.5]} 20. Bb5 {[%clk 0:02:29.9]} 20... Bd7 {[%clk 0:02:51.2]}
21. Nd5 {[%clk 0:02:28.4]} 21... a6 {[%clk 0:02:13.3]} 22. Bxc6 {[%clk
0:02:20.1]} 22... Bxc6 {[%clk 0:02:13.5]} 23. Nxc7 {[%clk 0:02:18.5]} 23...
Rxe1+ {[%clk 0:02:12.5]} 24. Rxe1 {[%clk 0:02:19.4]} 24... Kf7 {[%clk 0:02:13]}
25. Ne6 {[%clk 0:02:09.6]} 25... Rh8 {[%clk 0:02:04.3]} 26. Ng5+ {[%clk
0:02:04.4]} 26... Kf6 {[%clk 0:02:02.9]} 27. h4 {[%clk 0:01:43.6]} 27... h6
{[%clk 0:02:02.7]} 28. Re6+ {[%clk 0:01:14.6]} 28... Kf5 {[%clk 0:02:02.6]} 29.
g4+ {[%clk 0:01:13.1]} 29... Kf4 {[%clk 0:02:02.6]} 30. Nf7 {[%clk 0:01:10.5]}
30... Rh7 {[%clk 0:01:57.7]} 31. Rf6+ {[%clk 0:01:05.5]} 31... Kg3 {[%clk
0:01:55.6]} 32. Nxd6 {[%clk 0:00:49.3]} 32... Re7 {[%clk 0:01:53.3]} 33. Kf1
{[%clk 0:00:38.4]} 33... Bxf3 {[%clk 0:01:50.7]} 34. g5 {[%clk 0:00:21.3]} 34...
Bg2+ {[%clk 0:01:49.1]} 0-1

[Event "*** Titled Tuesday Blitz"]
[Site "Chess.com"]
[Date "2021.04.06"]
[Round "9"]
[White "AlexOstrovskiy"]
[Black "Nuvas"]
[Result "0-1"]
[WhiteElo "2740"]
[BlackElo "2612"]
[TimeControl "180+1"]
[EndTime "11:44:02 PDT"]
[Termination "Nuvas won by resignation"]

1. d4 {[%clk 0:03:00.9]} 1... d5 {[%clk 0:02:59]} 2. Bf4 {[%clk 0:02:51.4]} 2...
c5 {[%clk 0:02:56.9]} 3. e3 {[%clk 0:02:49.1]} 3... Nc6 {[%clk 0:02:56.1]} 4. c3
{[%clk 0:02:49]} 4... Nf6 {[%clk 0:02:52.1]} 5. Nd2 {[%clk 0:02:45.4]} 5... e6
{[%clk 0:02:52.3]} 6. Ngf3 {[%clk 0:02:42.9]} 6... Nh5 {[%clk 0:02:52.4]} 7. Bg5
{[%clk 0:02:40.5]} 7... f6 {[%clk 0:02:52.8]} 8. Bh4 {[%clk 0:02:40.7]} 8... g6
{[%clk 0:02:53.3]} 9. Bd3 {[%clk 0:02:36.5]} 9... cxd4 {[%clk 0:02:52.1]} 10.
Nxd4 {[%clk 0:02:31.1]} 10... Be7 {[%clk 0:02:44.5]} 11. Nxc6 {[%clk 0:01:58.3]}
11... bxc6 {[%clk 0:02:44.1]} 12. O-O {[%clk 0:01:43.9]} 12... O-O {[%clk
0:02:41.2]} 13. c4 {[%clk 0:01:42.6]} 13... Rb8 {[%clk 0:02:40.7]} 14. b3 {[%clk
0:01:42.5]} 14... e5 {[%clk 0:02:35.6]} 15. cxd5 {[%clk 0:01:38.4]} 15... cxd5
{[%clk 0:02:36.5]} 16. e4 {[%clk 0:01:35.1]} 16... Nf4 {[%clk 0:02:27.3]} 17.
Bc2 {[%clk 0:01:35.3]} 17... Ba6 {[%clk 0:02:24]} 18. Re1 {[%clk 0:01:34.5]}
18... Bb4 {[%clk 0:02:11.3]} 19. Re3 {[%clk 0:00:41]} 19... d4 {[%clk
0:01:37.4]} 20. Rg3 {[%clk 0:00:33.8]} 20... Ne2+ {[%clk 0:01:34.9]} 21. Kh1
{[%clk 0:00:33.3]} 21... Nxg3+ {[%clk 0:01:28.2]} 22. Bxg3 {[%clk 0:00:34.2]}
22... d3 {[%clk 0:01:28.7]} 23. Bb1 {[%clk 0:00:33]} 23... Qd4 {[%clk
0:01:28.6]} 24. a3 {[%clk 0:00:27.2]} 24... Bxd2 {[%clk 0:01:27.2]} 25. Ra2
{[%clk 0:00:26.7]} 25... Bc3 {[%clk 0:01:25.4]} 26. b4 {[%clk 0:00:26.8]} 26...
d2 {[%clk 0:01:24.2]} 27. Bc2 {[%clk 0:00:22.8]} 27... Bc4 {[%clk 0:01:23.2]}
0-1

[Event "*** Titled Tuesday Blitz"]
[Site "Chess.com"]
[Date "2021.04.06"]
[Round "9"]
[White "Olkaa"]
[Black "ErikRonka"]
[Result "0-1"]
[WhiteElo "2616"]
[BlackElo "2464"]
[TimeControl "180+1"]
[EndTime "11:44:05 PDT"]
[Termination "ErikRonka won by resignation"]

1. d4 {[%clk 0:03:00.9]} 1... d5 {[%clk 0:02:59.8]} 2. Nc3 {[%clk 0:03:00.9]}
2... c6 {[%clk 0:02:58.6]} 3. e4 {[%clk 0:02:59.9]} 3... dxe4 {[%clk 0:02:58]}
4. Nxe4 {[%clk 0:03:00.8]} 4... Bf5 {[%clk 0:02:58.4]} 5. Ng3 {[%clk 0:03:01.1]}
5... Bg6 {[%clk 0:02:58.6]} 6. Bc4 {[%clk 0:03:00.9]} 6... e6 {[%clk 0:02:58.4]}
7. N1e2 {[%clk 0:03:00.5]} 7... Nf6 {[%clk 0:02:52.8]} 8. O-O {[%clk 0:02:59.6]}
8... Nbd7 {[%clk 0:02:51]} 9. f4 {[%clk 0:02:59.5]} 9... Be7 {[%clk 0:02:37.5]}
10. f5 {[%clk 0:02:59]} 10... exf5 {[%clk 0:02:38.4]} 11. Nxf5 {[%clk
0:02:59.4]} 11... O-O {[%clk 0:02:35.5]} 12. Neg3 {[%clk 0:02:54.8]} 12... Nb6
{[%clk 0:02:25.9]} 13. Bb3 {[%clk 0:02:54.4]} 13... c5 {[%clk 0:02:18.3]} 14. c3
{[%clk 0:02:30.7]} 14... cxd4 {[%clk 0:02:12.7]} 15. cxd4 {[%clk 0:02:30.6]}
15... Nbd5 {[%clk 0:02:06.6]} 16. Bg5 {[%clk 0:02:26.9]} 16... Ne8 {[%clk
0:00:34.1]} 17. Nxe7+ {[%clk 0:02:07.8]} 17... Nxe7 {[%clk 0:00:35]} 18. Re1
{[%clk 0:01:50]} 18... Nf6 {[%clk 0:00:34.9]} 19. Bxf6 {[%clk 0:01:46.2]} 19...
gxf6 {[%clk 0:00:35.8]} 20. Kh1 {[%clk 0:01:46.7]} 20... Nc6 {[%clk 0:00:35.1]}
21. d5 {[%clk 0:01:44.2]} 21... Ne5 {[%clk 0:00:35.1]} 22. d6 {[%clk 0:01:33]}
22... Nd3 {[%clk 0:00:33.4]} 23. Re3 {[%clk 0:01:23.6]} 23... Nf2+ {[%clk
0:00:32.7]} 24. Kg1 {[%clk 0:01:20.6]} 24... Nxd1 {[%clk 0:00:32.7]} 25. Rxd1
{[%clk 0:01:21.3]} 25... Qb6 {[%clk 0:00:32.3]} 26. Kf2 {[%clk 0:01:20.1]} 26...
Rfe8 {[%clk 0:00:31.7]} 27. Nf1 {[%clk 0:01:19.9]} 27... Rxe3 {[%clk 0:00:31.3]}
28. Nxe3 {[%clk 0:01:19.7]} 28... Re8 {[%clk 0:00:30.2]} 0-1

[Event "*** Titled Tuesday Blitz"]
[Site "Chess.com"]
[Date "2021.04.06"]
[Round "9"]
[White "scarabee43"]
[Black "nrvisakh"]
[Result "1-0"]
[WhiteElo "2651"]
[BlackElo "2768"]
[TimeControl "180+1"]
[EndTime "11:44:07 PDT"]
[Termination "scarabee43 won by resignation"]

1. d4 {[%clk 0:03:00.9]} 1... Nf6 {[%clk 0:02:13.5]} 2. c4 {[%clk 0:03:01.2]}
2... g6 {[%clk 0:02:12.7]} 3. Nc3 {[%clk 0:03:01.5]} 3... Bg7 {[%clk 0:02:10.5]}
4. e4 {[%clk 0:03:02]} 4... d6 {[%clk 0:02:11.1]} 5. Nf3 {[%clk 0:03:02.6]} 5...
O-O {[%clk 0:02:11.7]} 6. Be2 {[%clk 0:03:02.7]} 6... e5 {[%clk 0:02:12.3]} 7.
O-O {[%clk 0:03:02.8]} 7... Na6 {[%clk 0:02:11.9]} 8. Be3 {[%clk 0:02:58.5]}
8... exd4 {[%clk 0:02:10.1]} 9. Nxd4 {[%clk 0:02:57.8]} 9... Nc5 {[%clk
0:02:11]} 10. f3 {[%clk 0:02:56]} 10... c6 {[%clk 0:02:11.3]} 11. Qd2 {[%clk
0:02:52.8]} 11... Re8 {[%clk 0:02:10.9]} 12. Rad1 {[%clk 0:02:50.3]} 12... Qe7
{[%clk 0:01:34.2]} 13. Nc2 {[%clk 0:02:34.4]} 13... Bf8 {[%clk 0:01:28.3]} 14.
Bf4 {[%clk 0:02:23.8]} 14... Rd8 {[%clk 0:01:23.2]} 15. e5 {[%clk 0:02:13.4]}
15... Ne8 {[%clk 0:01:18.2]} 16. Bg5 {[%clk 0:02:10]} 16... f6 {[%clk
0:01:15.3]} 17. exf6 {[%clk 0:02:07.4]} 17... Nxf6 {[%clk 0:01:15.4]} 18. Rfe1
{[%clk 0:02:01.4]} 18... Qf7 {[%clk 0:01:10.9]} 19. Bf1 {[%clk 0:01:56.6]} 19...
a5 {[%clk 0:00:58.2]} 20. Qd4 {[%clk 0:01:46.5]} 20... Bg7 {[%clk 0:00:41.8]}
21. Qxc5 {[%clk 0:01:38.3]} 21... dxc5 {[%clk 0:00:41.4]} 22. Rxd8+ {[%clk
0:01:37.6]} 22... Bf8 {[%clk 0:00:41.5]} 23. Bh6 {[%clk 0:01:10.8]} 23... b6
{[%clk 0:00:31.4]} 24. Rxf8+ {[%clk 0:01:07.9]} 24... Qxf8 {[%clk 0:00:31]} 25.
Bxf8 {[%clk 0:01:08.6]} 25... Kxf8 {[%clk 0:00:31.3]} 1-0

[Event "*** Titled Tuesday Blitz"]
[Site "Chess.com"]
[Date "2021.04.06"]
[Round "9"]
[White "Chessbard1972"]
[Black "lacafi"]
[Result "1-0"]
[WhiteElo "2320"]
[BlackElo "2205"]
[TimeControl "180+1"]
[EndTime "11:44:18 PDT"]
[Termination "Chessbard1972 won by checkmate"]

1. e4 {[%clk 0:02:31.6]} 1... c6 {[%clk 0:02:58.4]} 2. Nc3 {[%clk 0:02:28.9]}
2... d5 {[%clk 0:02:58.9]} 3. Nf3 {[%clk 0:02:26.1]} 3... dxe4 {[%clk
0:02:59.8]} 4. Nxe4 {[%clk 0:02:24.8]} 4... Nf6 {[%clk 0:03:00.7]} 5. Nxf6+
{[%clk 0:02:24.8]} 5... exf6 {[%clk 0:03:01.6]} 6. d4 {[%clk 0:02:23.3]} 6...
Bd6 {[%clk 0:03:01.8]} 7. Bc4 {[%clk 0:02:22]} 7... O-O {[%clk 0:03:02.1]} 8.
Be3 {[%clk 0:02:21.8]} 8... Re8 {[%clk 0:02:53.8]} 9. Qd2 {[%clk 0:02:21.1]}
9... Nd7 {[%clk 0:02:51]} 10. O-O-O {[%clk 0:02:20.5]} 10... Nf8 {[%clk
0:02:50.6]} 11. Kb1 {[%clk 0:02:20]} 11... Qc7 {[%clk 0:02:45.5]} 12. Rhe1
{[%clk 0:02:17.9]} 12... b5 {[%clk 0:02:45.6]} 13. Bb3 {[%clk 0:02:15.8]} 13...
Be6 {[%clk 0:02:44.6]} 14. d5 {[%clk 0:02:12.8]} 14... cxd5 {[%clk 0:02:39.4]}
15. Bxd5 {[%clk 0:02:11.8]} 15... Bxd5 {[%clk 0:02:24.2]} 16. Qxd5 {[%clk
0:02:11.7]} 16... Rad8 {[%clk 0:02:04.3]} 17. Qb3 {[%clk 0:02:11.1]} 17... a6
{[%clk 0:02:01.3]} 18. h3 {[%clk 0:02:10.4]} 18... Ne6 {[%clk 0:01:58.4]} 19.
Nd4 {[%clk 0:02:03.4]} 19... Nc5 {[%clk 0:01:40.1]} 20. Qc3 {[%clk 0:02:02.5]}
20... Qb7 {[%clk 0:00:42.2]} 21. Nf5 {[%clk 0:01:57.4]} 21... Na4 {[%clk
0:00:41.9]} 22. Qb3 {[%clk 0:01:53.1]} 22... Be5 {[%clk 0:00:40.9]} 23. Bd4
{[%clk 0:01:43.6]} 23... Qxg2 {[%clk 0:00:32.1]} 24. Rg1 {[%clk 0:01:36.9]}
24... Qe4 {[%clk 0:00:20.4]} 25. Rxg7+ {[%clk 0:01:16.2]} 25... Kh8 {[%clk
0:00:20.1]} 26. Rxh7+ {[%clk 0:01:13.3]} 26... Kxh7 {[%clk 0:00:14]} 27. Qxf7+
{[%clk 0:01:12.7]} 27... Kh8 {[%clk 0:00:12.5]} 28. Qg7# {[%clk 0:01:12.7]} 1-0

[Event "*** Titled Tuesday Blitz"]
[Site "Chess.com"]
[Date "2021.04.06"]
[Round "9"]
[White "Rondo_Capriccioso"]
[Black "albi1999"]
[Result "0-1"]
[WhiteElo "2479"]
[BlackElo "2596"]
[TimeControl "180+1"]
[EndTime "11:44:20 PDT"]
[Termination "albi1999 won by resignation"]

1. e4 {[%clk 0:03:00.9]} 1... c6 {[%clk 0:02:54.7]} 2. d4 {[%clk 0:03:00.5]}
2... d5 {[%clk 0:02:55.6]} 3. exd5 {[%clk 0:03:00.9]} 3... cxd5 {[%clk
0:02:55.2]} 4. c4 {[%clk 0:03:01.8]} 4... Nf6 {[%clk 0:02:54.4]} 5. Nc3 {[%clk
0:03:02.4]} 5... Nc6 {[%clk 0:02:53.6]} 6. Bg5 {[%clk 0:03:02.9]} 6... Ne4
{[%clk 0:02:48.8]} 7. Be3 {[%clk 0:03:00.6]} 7... Bf5 {[%clk 0:02:39.5]} 8. Nf3
{[%clk 0:02:58.4]} 8... e6 {[%clk 0:02:38.8]} 9. cxd5 {[%clk 0:02:58.2]} 9...
exd5 {[%clk 0:02:32.7]} 10. Bd3 {[%clk 0:02:55.8]} 10... Bb4 {[%clk 0:02:20.3]}
11. O-O {[%clk 0:02:53.3]} 11... Bxc3 {[%clk 0:02:17]} 12. bxc3 {[%clk
0:02:32.3]} 12... Nxc3 {[%clk 0:02:16.7]} 13. Qc2 {[%clk 0:02:29.9]} 13... Bxd3
{[%clk 0:02:16.4]} 14. Qxd3 {[%clk 0:02:30.5]} 14... Ne4 {[%clk 0:02:16.9]} 15.
Rab1 {[%clk 0:02:29.4]} 15... Qd7 {[%clk 0:02:15.2]} 16. Ne5 {[%clk 0:02:26.3]}
16... Nxe5 {[%clk 0:02:14.3]} 17. dxe5 {[%clk 0:02:27.2]} 17... Rc8 {[%clk
0:02:09.2]} 18. Bxa7 {[%clk 0:01:58]} 18... O-O {[%clk 0:02:06.3]} 19. Bd4
{[%clk 0:01:58.1]} 19... Rc4 {[%clk 0:02:00.5]} 20. Rfc1 {[%clk 0:01:49.3]}
20... Rfc8 {[%clk 0:01:58.2]} 21. Rxc4 {[%clk 0:01:43.6]} 21... Rxc4 {[%clk
0:01:58.7]} 22. f3 {[%clk 0:01:26.4]} 22... Ng5 {[%clk 0:01:58.1]} 23. Bf2
{[%clk 0:00:47.3]} 23... Ne6 {[%clk 0:01:49.8]} 24. g3 {[%clk 0:00:42.4]} 24...
Ng5 {[%clk 0:01:45.4]} 25. h4 {[%clk 0:00:38.6]} 25... Nh3+ {[%clk 0:01:29.4]}
26. Kg2 {[%clk 0:00:36.2]} 26... Rxh4 {[%clk 0:01:29.2]} 27. Rc1 {[%clk
0:00:22.2]} 27... Nf4+ {[%clk 0:01:26.2]} 28. gxf4 {[%clk 0:00:09.6]} 28... Qh3+
{[%clk 0:01:25.4]} 0-1

[Event "*** Titled Tuesday Blitz"]
[Site "Chess.com"]
[Date "2021.04.06"]
[Round "9"]
[White "Ave_Mariia"]
[Black "gahryman"]
[Result "0-1"]
[WhiteElo "2464"]
[BlackElo "2719"]
[TimeControl "180+1"]
[EndTime "11:44:26 PDT"]
[Termination "gahryman won by resignation"]

1. d4 {[%clk 0:03:00.9]} 1... Nf6 {[%clk 0:02:59.6]} 2. c4 {[%clk 0:03:00.7]}
2... g6 {[%clk 0:02:59.7]} 3. Nc3 {[%clk 0:03:00.6]} 3... Bg7 {[%clk 0:03:00.1]}
4. e4 {[%clk 0:03:00.4]} 4... d6 {[%clk 0:03:00.3]} 5. Be2 {[%clk 0:03:00.4]}
5... O-O {[%clk 0:03:01.2]} 6. Be3 {[%clk 0:03:00]} 6... e5 {[%clk 0:03:01]} 7.
d5 {[%clk 0:02:59.9]} 7... Na6 {[%clk 0:03:01.5]} 8. g4 {[%clk 0:03:00.1]} 8...
Nc5 {[%clk 0:03:01.5]} 9. f3 {[%clk 0:03:00.5]} 9... c6 {[%clk 0:02:49.3]} 10.
h4 {[%clk 0:02:57.7]} 10... h5 {[%clk 0:02:49]} 11. g5 {[%clk 0:02:56.6]} 11...
Nh7 {[%clk 0:02:49.6]} 12. Qd2 {[%clk 0:02:50.2]} 12... cxd5 {[%clk 0:02:49.6]}
13. cxd5 {[%clk 0:02:49.9]} 13... Bd7 {[%clk 0:02:49.9]} 14. Nh3 {[%clk
0:02:44]} 14... Rc8 {[%clk 0:02:45.8]} 15. Nf2 {[%clk 0:02:42.8]} 15... f6
{[%clk 0:02:45.4]} 16. Rg1 {[%clk 0:02:20.3]} 16... fxg5 {[%clk 0:02:43.4]} 17.
hxg5 {[%clk 0:02:21.2]} 17... a5 {[%clk 0:02:37.8]} 18. Rg2 {[%clk 0:02:13.9]}
18... a4 {[%clk 0:02:35.1]} 19. Nd3 {[%clk 0:02:04.2]} 19... Nxd3+ {[%clk
0:02:23.9]} 20. Qxd3 {[%clk 0:02:05.1]} 20... a3 {[%clk 0:02:23.7]} 21. b3
{[%clk 0:02:03.9]} 21... Rf4 {[%clk 0:02:23.4]} 22. Rc1 {[%clk 0:01:47.4]} 22...
Nxg5 {[%clk 0:02:18.7]} 23. Bxf4 {[%clk 0:01:43]} 23... exf4 {[%clk 0:02:18.6]}
24. Bf1 {[%clk 0:01:31.7]} 24... h4 {[%clk 0:01:56.7]} 25. Rgc2 {[%clk
0:01:20.3]} 25... h3 {[%clk 0:01:53.9]} 26. Ne2 {[%clk 0:01:10.9]} 26... Rxc2
{[%clk 0:01:42.1]} 27. Rxc2 {[%clk 0:01:00.9]} 27... h2 {[%clk 0:01:37]} 28. Bg2
{[%clk 0:01:00.8]} 28... Qb6 {[%clk 0:01:36.8]} 29. Rc1 {[%clk 0:00:21.3]} 29...
Qg1+ {[%clk 0:01:31.5]} 30. Nxg1 {[%clk 0:00:20.4]} 30... hxg1=Q+ {[%clk
0:01:31.4]} 31. Qf1 {[%clk 0:00:20.5]} 31... Qe3+ {[%clk 0:01:30.2]} 32. Kd1
{[%clk 0:00:19.3]} 32... Nxe4 {[%clk 0:01:27.1]} 33. fxe4 {[%clk 0:00:17.6]}
33... Bg4+ {[%clk 0:01:27.6]} 34. Kc2 {[%clk 0:00:16.7]} 34... Qc3+ {[%clk
0:01:27.9]} 0-1

[Event "*** Titled Tuesday Blitz"]
[Site "Chess.com"]
[Date "2021.04.06"]
[Round "9"]
[White "Keures"]
[Black "VladaSviridova"]
[Result "0-1"]
[WhiteElo "2343"]
[BlackElo "2241"]
[TimeControl "180+1"]
[EndTime "11:44:28 PDT"]
[Termination "VladaSviridova won by resignation"]

1. d4 {[%clk 0:02:55.4]} 1... d5 {[%clk 0:03:00]} 2. c4 {[%clk 0:02:54.1]} 2...
c6 {[%clk 0:03:00.4]} 3. Nc3 {[%clk 0:02:52.9]} 3... Nf6 {[%clk 0:03:00.4]} 4.
Nf3 {[%clk 0:02:44.1]} 4... dxc4 {[%clk 0:03:00.2]} 5. a4 {[%clk 0:02:43.9]}
5... Bf5 {[%clk 0:03:00]} 6. e3 {[%clk 0:02:40.4]} 6... e6 {[%clk 0:02:59.9]} 7.
Bxc4 {[%clk 0:02:40]} 7... Bb4 {[%clk 0:02:59.8]} 8. Bd2 {[%clk 0:02:39]} 8...
O-O {[%clk 0:02:59]} 9. Qe2 {[%clk 0:02:38.7]} 9... Nbd7 {[%clk 0:02:44.5]} 10.
e4 {[%clk 0:02:38.2]} 10... Bxc3 {[%clk 0:02:24.6]} 11. exf5 {[%clk 0:02:30]}
11... Bxd2+ {[%clk 0:02:24.4]} 12. Qxd2 {[%clk 0:02:29.6]} 12... exf5 {[%clk
0:02:24.5]} 13. O-O {[%clk 0:02:29.1]} 13... Nb6 {[%clk 0:02:15.8]} 14. Bd3
{[%clk 0:02:23.4]} 14... g6 {[%clk 0:02:05.7]} 15. h3 {[%clk 0:02:13.1]} 15...
Kg7 {[%clk 0:02:01.9]} 16. Rae1 {[%clk 0:02:07]} 16... a5 {[%clk 0:01:35.9]} 17.
Re2 {[%clk 0:01:58.6]} 17... Nbd5 {[%clk 0:01:34.8]} 18. Rfe1 {[%clk 0:01:56.6]}
18... Qd6 {[%clk 0:01:28]} 19. Ne5 {[%clk 0:01:46.4]} 19... Qb4 {[%clk
0:01:07.2]} 20. Qg5 {[%clk 0:01:00.2]} 20... h6 {[%clk 0:00:44.5]} 21. Qg3
{[%clk 0:00:55.4]} 21... f4 {[%clk 0:00:36.2]} 22. Qh4 {[%clk 0:00:51.4]} 22...
g5 {[%clk 0:00:29.8]} 0-1

[Event "*** Titled Tuesday Blitz"]
[Site "Chess.com"]
[Date "2021.04.06"]
[Round "9"]
[White "gmcorrales"]
[Black "Nozdrachev_Leonid"]
[Result "1-0"]
[WhiteElo "2778"]
[BlackElo "2571"]
[TimeControl "180+1"]
[EndTime "11:44:29 PDT"]
[Termination "gmcorrales won by checkmate"]

1. e4 {[%clk 0:03:00.9]} 1... c6 {[%clk 0:02:56.9]} 2. d4 {[%clk 0:03:00.4]}
2... d5 {[%clk 0:02:57]} 3. e5 {[%clk 0:03:01]} 3... Bf5 {[%clk 0:02:56.2]} 4.
h4 {[%clk 0:03:01.6]} 4... Qc8 {[%clk 0:02:54.6]} 5. Nc3 {[%clk 0:02:55.5]} 5...
a6 {[%clk 0:02:50.6]} 6. a4 {[%clk 0:02:54.9]} 6... h6 {[%clk 0:02:41.2]} 7. a5
{[%clk 0:02:54.3]} 7... e6 {[%clk 0:02:40]} 8. Na4 {[%clk 0:02:49.3]} 8... Nd7
{[%clk 0:02:37.3]} 9. c3 {[%clk 0:02:46.9]} 9... Ne7 {[%clk 0:02:33.5]} 10. b4
{[%clk 0:02:44.2]} 10... Bh7 {[%clk 0:02:28.8]} 11. h5 {[%clk 0:02:44.4]} 11...
f6 {[%clk 0:01:33.4]} 12. f4 {[%clk 0:02:44.3]} 12... Be4 {[%clk 0:01:28.6]} 13.
Rh3 {[%clk 0:02:40.2]} 13... f5 {[%clk 0:01:28]} 14. Be3 {[%clk 0:02:29.8]}
14... Qc7 {[%clk 0:01:23.1]} 15. Ne2 {[%clk 0:02:25.8]} 15... Nc8 {[%clk
0:01:16.9]} 16. Ng3 {[%clk 0:02:23]} 16... Be7 {[%clk 0:01:10.5]} 17. Nxe4
{[%clk 0:02:22.3]} 17... fxe4 {[%clk 0:01:10.3]} 18. g4 {[%clk 0:02:22.4]} 18...
b6 {[%clk 0:01:01.6]} 19. axb6 {[%clk 0:02:21.3]} 19... Ncxb6 {[%clk 0:01:02.5]}
20. Nxb6 {[%clk 0:02:20.6]} 20... Qxb6 {[%clk 0:01:00.2]} 21. Ra5 {[%clk
0:02:15.8]} 21... Nb8 {[%clk 0:00:55.7]} 22. Qa4 {[%clk 0:02:15.2]} 22... O-O
{[%clk 0:00:54.7]} 23. Be2 {[%clk 0:02:15.2]} 23... Bd8 {[%clk 0:00:53.9]} 24.
Kd2 {[%clk 0:02:14.4]} 24... Qb7 {[%clk 0:00:48.5]} 25. g5 {[%clk 0:02:13.5]}
25... hxg5 {[%clk 0:00:45.3]} 26. fxg5 {[%clk 0:02:13.1]} 26... Bxa5 {[%clk
0:00:43.2]} 27. Qxa5 {[%clk 0:02:14]} 27... Nd7 {[%clk 0:00:41.8]} 28. g6 {[%clk
0:02:13.5]} 28... Qb6 {[%clk 0:00:37.7]} 29. Qa1 {[%clk 0:02:13.2]} 29... a5
{[%clk 0:00:36.4]} 30. b5 {[%clk 0:02:13.7]} 30... cxb5 {[%clk 0:00:33.9]} 31.
h6 {[%clk 0:02:14]} 31... b4 {[%clk 0:00:30.5]} 32. c4 {[%clk 0:02:13.3]} 32...
b3 {[%clk 0:00:26.8]} 33. hxg7 {[%clk 0:02:12.6]} 33... Qb4+ {[%clk 0:00:24.5]}
34. Qc3 {[%clk 0:02:08.4]} 34... Rfb8 {[%clk 0:00:22]} 35. Bg4 {[%clk
0:02:00.1]} 35... Ra6 {[%clk 0:00:16.7]} 36. Rh7 {[%clk 0:01:33.8]} 36... b2
{[%clk 0:00:16.1]} 37. Qxb4 {[%clk 0:01:33.6]} 37... Rxb4 {[%clk 0:00:14.2]} 38.
Bh6 {[%clk 0:01:33.7]} 38... b1=Q {[%clk 0:00:08.6]} 39. Rh8# {[%clk 0:01:33.7]}
1-0